Cogmind - Beta 14 @@@ ROGUE MODE // 2024.12.15 @ 12:31:14 Player: MarKhan Result: Destroyed by Y-45 Defender with Heavy Assault Rifle Performance ------------- Evolutions (2) 1000 Regions Visited (12) 2400 Robots Destroyed (267) 1335 Value Destroyed (8259) 8259 Prototype IDs (33) 660 Alien Tech Used (0) 0 Bonus (5485) 5485 TOTAL SCORE: 19139 Bonus ------- High Alert Combat Kills 1704 Follower Combat Kills 381 Entered Garrisons 600 Used RIF Installer 2500 Aligned with FarCom 300 Cogmind --------- Core Integrity 0/550 Matter 280/300 Energy 145/275 System Corruption 3% Temperature Warm (149) Movement Treading (242) Ox1 Location -8/Garrison Parts ------- > --- POWER (1) -------- Deuterium Engine > --- PROPULSION (4) --- Light Treads Improved Treads Improved Treads Armored Treads > --- UTILITY (3) ------ Improved Cooling System Huge Storage Unit Hacking Suite > --- WEAPON (3) ------- Plasma Rifle Plasma Rifle Plasma Rifle > --- INVENTORY (25) --- Light Angular Momentum Engine Light Treads Light Treads Light Treads Light Treads Light Treads Advanced Heat Sink High-capacity Battery (250) Compact Matter Pod (150) Structural Scanner Machine Analyzer Hardened Medium Armor Plating Relay Coupler [Grunt] (27) High-powered Tractor Beam Plasma Rifle Guided Plasma Cannon Minigun Heavy Machine Gun Rocket Launcher Improved Grenade Launcher Remote Datajack Plasma Cutter Axe Peak State ------------ > --- POWER ------------ Reinforced Deuterium Engine > --- PROPULSION ------- Armored Treads Advanced Treads Advanced Treads Improved Medium Treads > --- UTILITY ---------- Huge Storage Unit Hardened Medium Armor Plating Hacking Suite > --- WEAPON ----------- Enhanced Autogun Enhanced Autogun Enhanced Autogun > --- INVENTORY -------- Deuterium Engine Micro Nuclear Core Light Treads Light Treads Light Treads Light Treads Light Treads Improved Treads Advanced Treads Improved Heat Sink Improved Cooling System High-capacity Battery Compact Matter Pod Structural Scanner Machine Analyzer High-powered Tractor Beam Heavy Particle Gun Guided Plasma Cannon Enhanced Autogun Enhanced Autogun Heavy Machine Gun Rocket Launcher Improved Grenade Launcher Improved Datajack Plasma Cutter [Rating: 44] Favorites ----------- Power Ion Engine Engine Ion Engine Power Core Micro Nuclear Core Propulsion Armored Treads Treads Armored Treads Wheel Compact Wheel Utility Huge Storage Unit Device Structural Scanner Storage Huge Storage Unit Processor Signal Interpreter Hackware Hacking Suite Protection Hardened Medium Armor Plating Weapon Heavy Assault Rifle Energy Gun Plasma Rifle Energy Cannon Advanced Beam Cannon Ballistic Gun Heavy Assault Rifle Ballistic Cannon Flak Cannon Launcher Rocket Launcher Special Weapon Remote Datajack Special Melee Weapon Improved Datajack Build | -11 -10 -10 -9 -9 -9 -8 -8 -8 -8 -8 -8 -8 ------- Run | Yrd Mat Min Mat Min Exi Min Mat Gar Mat Gar Mat Gar Slots Evolved 4 | . . . 2 . . . 2 . . . . . Power . | . . . . . . . . . . . . . Propulsion 2 | . . . . . . . 2 . . . . . Utility 1 | . . . 1 . . . . . . . . . Weapon 1 | . . . 1 . . . . . . . . . Parts Attached 194 | 8 23 6 35 4 . 2 25 12 11 23 27 18 Power 17 | 1 4 2 2 1 . . 4 1 . 1 1 . Engine 15 | 1 4 2 2 1 . . 3 . . 1 1 . Core 2 | . . . . . . . 1 1 . . . . Reactor . | . . . . . . . . . . . . . Propulsion 37 | 2 5 . 3 . . . 6 . 1 7 11 2 Treads 34 | 2 2 . 3 . . . 6 . 1 7 11 2 Leg . | . . . . . . . . . . . . . Wheel 3 | . 3 . . . . . . . . . . . Hover . | . . . . . . . . . . . . . Flight . | . . . . . . . . . . . . . Utility 69 | 2 3 2 15 3 . 1 6 7 3 7 9 11 Device 30 | 1 . 2 7 2 . . 3 2 1 2 7 3 Storage 5 | 1 2 . 1 . . . . . . . 1 . Processor 2 | . . . 1 . . . . 1 . . . . Hackware 11 | . . . . . . . 1 1 1 1 . 7 Protection 21 | . 1 . 6 1 . 1 2 3 1 4 1 1 Artifact . | . . . . . . . . . . . . . Weapon 71 | 3 11 2 15 . . 1 9 4 7 8 6 5 Energy Gun 17 | 3 3 . 5 . . . 1 . . . 3 2 Energy Cannon 1 | . . . 1 . . . . . . . . . Ballistic Gun 38 | . 6 1 6 . . 1 7 2 5 7 3 . Ballistic Cannon 1 | . . . 1 . . . . . . . . . Launcher 10 | . 2 1 2 . . . 1 2 1 . . 1 Special Weapon 3 | . . . . . . . . . . 1 . 2 Impact Weapon . | . . . . . . . . . . . . . Slashing Weapon . | . . . . . . . . . . . . . Piercing Weapon . | . . . . . . . . . . . . . Special Melee Weapon 1 | . . . . . . . . . 1 . . . Unidentified Prototypes 5 | . . 1 3 . . . . . 1 . . . Parts Lost 22 | . 5 . 2 . . 1 1 . 1 4 8 . Power 2 | . 1 . 1 . . . . . . . . . Propulsion 9 | . 2 . . . . . . . . 3 4 . Utility 3 | . . . 1 . . . . . 1 1 . . Weapon 8 | . 2 . . . . 1 1 . . . 4 . Highest Loss Streak 7 | . 5 . 1 . . 1 1 . 1 4 7 . To Critical Strikes . | . . . . . . . . . . . . . Average Slot Usage (%) 99 | . 97 100 99 99 100 100 100 100 99 99 99 100 Engine 9 | . 12 14 10 10 11 11 8 8 . 8 9 9 Treads 29 | . 26 28 22 22 22 22 36 36 36 35 35 36 Device 4 | . 7 12 5 1 11 . 4 . 1 . 7 2 Storage 10 | . 14 14 11 11 11 11 9 9 9 9 9 9 Processor 4 | . . . 10 11 11 11 3 4 3 . . . Hackware 4 | . . . . . . . 5 9 10 9 9 15 Protection 5 | . 6 1 6 9 . 10 4 4 1 8 1 . Energy Gun 6 | . 8 . 9 . . . . . . . 17 20 Ballistic Gun 22 | . 19 28 23 33 33 33 26 26 26 26 9 . Peak Build Rating 44 | 7 9 17 30 31 29 29 37 38 40 44 41 41 Average Rating 28 | 5 7 14 24 24 29 25 33 36 37 41 38 40 On Entrance 25 | . 7 9 17 25 29 29 26 35 38 39 41 41 Naked Turns . | . . . . . . . . . . . . . Heaviest Build 113 | 15 52 50 105 105 95 102 104 107 100 113 112 103 Greatest Support 95 | 40 40 40 40 40 40 40 82 82 82 95 95 86 Greatest Overweight (x) 2 | . 2 1 2 2 2 2 1 1 1 1 1 1 Average Overweight (x) 1 | . . 1 1 2 2 2 1 1 1 1 1 1 Largest Inventory Capacity 25 | 8 20 20 25 25 25 25 25 25 25 25 25 25 Average Capacity 23 | 7 19 20 23 25 25 25 25 25 25 25 25 25 Most Carried 25 | 4 20 20 25 25 25 25 25 25 25 25 25 25 Average Carried 22 | 2 14 19 23 24 24 24 24 24 24 24 23 24 Final Capacity 25 | 8 20 20 25 25 25 25 25 25 25 25 25 25 Final Carried 25 | 4 20 20 25 25 25 24 25 25 25 25 25 23 Class Distribution -------------------- 51% | Skirmisher 16% | Tank 14% | Mutant 13% | Scavenger-Skirmisher Dominant Class ---------------- Mutant | -10/Materials Mutant | -10/Mines Tank | -9/Materials Tank | -9/Mines Skirmisher | -9/Exiles Skirmisher | -8/Mines Skirmisher | -8/Materials Skirmisher | -8/Garrison Skirmisher | -8/Materials Scavenger-Skirmisher | -8/Garrison Scavenger-Skirmisher | -8/Materials Skirmisher | -8/Garrison Resources | -11 -10 -10 -9 -9 -9 -8 -8 -8 -8 -8 -8 -8 ----------- Run | Yrd Mat Min Mat Min Exi Min Mat Gar Mat Gar Mat Gar Matter Collected 7451 | 311 614 148 1322 112 . 342 1097 448 318 1579 906 254 Remotely 1251 | . . . . . . . 574 279 . 207 191 . Salvage Created 9576 | 154 886 215 2100 221 . 462 1411 580 497 1244 1344 462 Parts 577 | 14 53 11 135 12 . 21 92 44 27 90 58 20 Haulers Intercepted 18 | . 2 . 6 . . . 5 . 2 . 3 . Recyclers Shooed 5 | 1 2 . 1 1 . . . . . . . . Parts Field Recycled . | . . . . . . . . . . . . . Retrieved Matter . | . . . . . . . . . . . . . Parts Self-Destructed . | . . . . . . . . . . . . . Prevented . | . . . . . . . . . . . . . Kills | -11 -10 -10 -9 -9 -9 -8 -8 -8 -8 -8 -8 -8 ------- Run | Yrd Mat Min Mat Min Exi Min Mat Gar Mat Gar Mat Gar Combat Hostiles Destroyed 193 | . 15 5 28 4 . 12 27 25 11 32 22 12 Guns 158 | . 7 3 23 4 . 12 27 11 10 32 21 8 AOE 34 | . 8 2 5 . . . . 14 1 . . 4 Classes Destroyed 17 | 3 6 . 2 1 . 1 1 1 . 1 . 1 Worker 16 | 2 6 . 5 . . . 1 . 1 . 1 . Builder 6 | . 2 . 2 . . . 1 . . . 1 . Tunneler 8 | 3 1 . . 1 . 1 2 . . . . . Hauler 18 | . 2 . 6 . . . 5 . 2 . 3 . Recycler 11 | 1 2 1 6 . . 1 . . . . . . Mechanic 2 | . . . 1 . . . . . . . 1 . Operator 3 | . 1 . . . . . 1 . . . 1 . Watcher 10 | . 2 . 3 . . . 3 . . . 2 . Swarmer 58 | . 3 3 3 . . 6 8 13 4 11 3 4 Grunt 79 | . 12 2 16 3 . 5 11 3 4 10 11 2 Brawler 4 | . . . . 1 . . . . . . 1 2 Duelist 5 | . . . . . . 1 . . . . 3 1 Sentry 35 | . . . 9 . . . 7 5 3 7 2 2 Specialist 1 | . . . . . . . . . . . . 1 Hunter 6 | . . . . . . . 1 1 . 2 2 . Programmer 4 | . . . . . . . . 3 . 1 . . Behemoth 1 | . . . . . . . . . . 1 . . Best Kill Streak 15 | 2 10 5 8 3 . 6 10 15 6 4 9 4 Combat Bots Only 15 | . 9 5 5 3 . 6 6 15 5 4 7 4 Max Kills in Single Turn 7 | 1 7 2 3 1 . 2 2 4 2 2 2 4 Gunslinging 1 | . 1 . . . . . 1 . . 1 1 . Exploded 7 | . 7 2 3 . . . . 4 1 . . 4 Melee . | . . . . . . . . . . . . . Uniques/NPCs Destroyed . | . . . . . . . . . . . . . Combat | -11 -10 -10 -9 -9 -9 -8 -8 -8 -8 -8 -8 -8 -------- Run | Yrd Mat Min Mat Min Exi Min Mat Gar Mat Gar Mat Gar Hostile Shots Fired 768 | . 67 22 118 7 . 46 96 72 40 134 133 33 Missed 181 | . 16 7 31 1 . 15 26 20 10 24 23 8 Damage Taken 8649 | . 854 166 1301 66 . 382 995 679 475 1713 1645 373 Core 772 | . 83 22 96 . . 16 92 65 25 210 116 47 Absorbed by Shields 7 | . . . . . . . . 7 . . . . Regen/Repaired (Parts) 612 | . . . 251 . . . . . . . 361 . Core Remaining (%) 76 | 100 . 58 . . . 72 . . . . . . Volleys Fired 581 | 11 86 14 100 8 . 33 79 38 25 80 71 36 Largest 3 | 2 2 2 3 3 . 3 3 3 3 3 3 3 Hottest 225 | 100 100 40 130 69 . 70 103 73 75 75 225 225 Shots Fired 1490 | 22 169 28 278 24 . 99 222 98 70 222 199 59 Gun 1445 | 22 165 27 274 24 . 99 221 82 68 220 199 44 Cannon . | . . . . . . . . . . . . . Launcher 29 | . 4 1 4 . . . 1 16 2 . . 1 Special 16 | . . . . . . . . . . 2 . 14 Kinetic 1162 | . 97 27 233 24 . 99 217 82 68 220 95 . Thermal 257 | 22 68 . 15 . . . 4 . . . 104 44 Explosive 29 | . 4 1 4 . . . 1 16 2 . . 1 Electromagnetic 26 | . . . 26 . . . . . . . . . Robot Hit Streak 20 | 7 20 7 17 15 . 8 7 13 12 8 16 10 Robot Miss Streak 11 | 2 11 1 8 2 . 5 4 3 3 4 6 2 Penetration Max 1 | . . . . . . . . . . . 1 . Secondary Targets 38 | . 2 . 1 1 . 2 7 4 2 10 7 2 Max Gunslinging Chain 1 | . 1 . 1 1 . 1 1 1 1 1 1 1 Shots Hit Robots 920 | 15 98 18 168 16 . 61 150 58 46 123 134 33 Core Hits 437 | 7 49 10 83 7 . 26 73 38 20 58 53 13 Critical Kills 1 | . . . . . . . 1 . . . . . Critical Parts Destroyed 1 | . . . . . . . 1 . . . . . Critical Strikes 16 | 3 2 . 1 . . . 2 . . . 4 4 Burn 14 | 3 2 . 1 . . . . . . . 4 4 Destroy 2 | . . . . . . . 2 . . . . . Melee Attacks 2 | . . . . . . . . . 2 . . . Impact . | . . . . . . . . . . . . . Slashing . | . . . . . . . . . . . . . Piercing . | . . . . . . . . . . . . . Sneak Attacks 2 | . . . . . . . . . 2 . . . Combat Hostiles . | . . . . . . . . . . . . . Follow-up Attacks . | . . . . . . . . . . . . . Damage Inflicted 18130 | 189 1660 339 3169 253 . 998 2613 2090 1058 2208 2867 686 Guns 15645 | 189 1291 232 2731 253 . 998 2530 989 836 2208 2867 521 Cannons . | . . . . . . . . . . . . . Explosions 2485 | . 369 107 438 . . . 83 1101 222 . . 165 Melee . | . . . . . . . . . . . . . Ramming . | . . . . . . . . . . . . . Kinetic 12297 | . 720 232 2216 253 . 998 2470 989 836 2208 1375 . Thermal 3241 | 189 571 . 408 . . . 60 . . . 1492 521 Explosive 2223 | . 369 107 176 . . . 83 1101 222 . . 165 Electromagnetic 369 | . . . 369 . . . . . . . . . Impact . | . . . . . . . . . . . . . Slashing . | . . . . . . . . . . . . . Piercing . | . . . . . . . . . . . . . Highest Corruption 3 | . 2 2 . . . . . 2 3 3 3 3 Average Corruption 2 | . 2 2 . . . . . 1 2 3 3 3 Corruption Purged . | . . . . . . . . . . . . . Corruption Blocked . | . . . . . . . . . . . . . Effects 118 | . 21 7 . . . . . 1 5 41 17 26 Message Errors 29 | . 4 2 . . . . . . 1 6 3 13 Matter Fused 27 | . 7 . . . . . . . 1 12 5 2 Heat Flow Errors 14 | . 3 1 . . . . . 1 1 4 3 1 Energy Discharges 20 | . 5 . . . . . . . . 9 1 5 Data Loss (minor) 12 | . 1 2 . . . . . . 1 3 2 3 Data Loss (major) 3 | . . . . . . . . . . 1 1 1 Misfires 4 | . . 1 . . . . . . . 2 1 . Alerts 4 | . 1 1 . . . . . . . . 1 1 Weapon Failures 5 | . . . . . . . . . 1 4 . . Overload Shots . | . . . . . . . . . . . . . Overflow Damage 262 | . 69 . 71 . . . . 6 116 . . . Projectiles . | . . . . . . . . . . . . . Explosions 262 | . 69 . 71 . . . . 6 116 . . . Melee . | . . . . . . . . . . . . . Knockbacks . | . . . . . . . . . . . . . Impact . | . . . . . . . . . . . . . Kinetic . | . . . . . . . . . . . . . Secondary . | . . . . . . . . . . . . . Self-Inflicted Damage 416 | . 234 . 68 . . . . . 114 . . . Shots 6 | . 3 . 2 . . . . . 1 . . . Rammed . | . . . . . . . . . . . . . Targets Rammed . | . . . . . . . . . . . . . Kicked . | . . . . . . . . . . . . . Crushed . | . . . . . . . . . . . . . Highest Temperature 556 | 156 275 206 362 103 . 297 132 209 220 556 479 225 Average Temperature 91 | 52 51 46 66 38 . 97 26 38 70 145 162 74 Received Heat Transfer 3324 | . 318 93 588 36 . 162 387 90 153 687 648 162 Effects 24 | . 3 . 2 . . . . . . 7 10 2 Shutdowns 4 | . . . 1 . . . . . . . 3 . Energy Bleed 3 | . . . . . . . . . . . 3 . Interference 9 | . 3 . 1 . . . . . . 1 2 2 Matter Decay 3 | . . . . . . . . . . 1 2 . Short Circuit 2 | . . . . . . . . . . 2 . . Damage (minor) 1 | . . . . . . . . . . 1 . . Damage (major) 2 | . . . . . . . . . . 2 . . Siege Activations . | . . . . . . . . . . . . . Robots Corrupted . | . . . . . . . . . . . . . Combat Hostiles . | . . . . . . . . . . . . . Parts Fried . | . . . . . . . . . . . . . Impact Corruptions . | . . . . . . . . . . . . . Robots Melted 1 | . . . . . . . . . . . 1 . Combat Hostiles 1 | . . . . . . . . . . . 1 . Parts Melted 19 | 5 4 . . . . . . . . . 9 1 Heat Transferred 8111 | 777 1754 . 657 . . . 111 . . . 3550 1262 Parts Sabotaged . | . . . . . . . . . . . . . Parts Stolen . | . . . . . . . . . . . . . Parts Stripped . | . . . . . . . . . . . . . Power Chain Reactions 2 | . . . 2 . . . . . . . . . Alert | -11 -10 -10 -9 -9 -9 -8 -8 -8 -8 -8 -8 -8 ------- Run | Yrd Mat Min Mat Min Exi Min Mat Gar Mat Gar Mat Gar Peak Influence 1553 | 30 458 239 340 187 . 150 510 1070 917 1553 1056 1380 Initial 756 | . 19 91 14 97 . . 54 287 521 596 756 625 Average 435 | 12 264 150 209 58 . 27 206 759 618 1069 872 983 Maximum Alert Level 4 | . 2 1 1 . . . 2 3 3 4 3 4 Low Security (%) 36 | 100 22 45 42 100 . 100 65 . . . . . Level 1 27 | . 73 54 57 . . . 10 29 . . . . Level 2 7 | . 3 . . . . . 24 3 76 7 1 8 Level 3 22 | . . . . . . . . 66 23 50 98 58 Level 4 6 | . . . . . . . . . . 42 . 32 Level 5 . | . . . . . . . . . . . . . High Security . | . . . . . . . . . . . . . Max Security . | . . . . . . . . . . . . . Squads Dispatched 19 | . 4 . 3 1 . . 5 . 2 . 4 . Investigation 8 | . 3 . 2 1 . . . . 1 . 1 . Extermination . | . . . . . . . . . . . . . Reinforcement 5 | . 1 . 1 . . . 2 . . . 1 . Assault 2 | . . . . . . . . . . . 2 . Garrison 4 | . . . . . . . 3 . 1 . . . Intercept . | . . . . . . . . . . . . . Searches Triggered . | . . . . . . . . . . . . . Construction Impeded 1 | . . . 1 . . . . . . . . . Haulers Reinforced . | . . . . . . . . . . . . . Active Scanning Responses . | . . . . . . . . . . . . . Cargo Convoy Interrupts . | . . . . . . . . . . . . . Stealth | -11 -10 -10 -9 -9 -9 -8 -8 -8 -8 -8 -8 -8 --------- Run | Yrd Mat Min Mat Min Exi Min Mat Gar Mat Gar Mat Gar Distress Signals 17 | . 2 . 1 . . . 5 . 1 . 8 . Communications Jammed . | . . . . . . . . . . . . . Distress Signals . | . . . . . . . . . . . . . Times Spotted 283 | . 33 5 45 4 . 12 39 26 12 35 45 27 Peak Tracking Total 9 | . 9 3 5 2 . 3 5 7 5 5 7 4 Tactical Retreats 8 | . 2 . . . . 1 2 . . . 3 . Traps | -11 -10 -10 -9 -9 -9 -8 -8 -8 -8 -8 -8 -8 ------- Run | Yrd Mat Min Mat Min Exi Min Mat Gar Mat Gar Mat Gar Traps Triggered 24 | . 1 . 3 . . . . 5 . 7 1 7 Indirectly . | . . . . . . . . . . . . . Trap Hack Attempts . | . . . . . . . . . . . . . Triggered . | . . . . . . . . . . . . . Disarmed . | . . . . . . . . . . . . . Reprogrammed . | . . . . . . . . . . . . . Reused . | . . . . . . . . . . . . . Traps Extracted . | . . . . . . . . . . . . . Installed . | . . . . . . . . . . . . . Triggered . | . . . . . . . . . . . . . Machines | -11 -10 -10 -9 -9 -9 -8 -8 -8 -8 -8 -8 -8 ---------- Run | Yrd Mat Min Mat Min Exi Min Mat Gar Mat Gar Mat Gar Machines Disabled 21 | . 5 . 3 1 . . 1 2 2 2 1 4 Max in Single Turn 2 | . 2 . 1 1 . . 1 1 2 1 1 1 Garrison Relay 5 | . . . . . . . . . . 2 . 3 Machines Repaired . | . . . . . . . . . . . . . Machines Dismantled . | . . . . . . . . . . . . . Machines Sabotaged . | . . . . . . . . . . . . . Overloaded Fab Kills . | . . . . . . . . . . . . . Hacking | -11 -10 -10 -9 -9 -9 -8 -8 -8 -8 -8 -8 -8 --------- Run | Yrd Mat Min Mat Min Exi Min Mat Gar Mat Gar Mat Gar Machines Accessed 52 | . 9 . 15 1 1 . 8 3 4 . 9 2 Terminals 37 | . 6 . 11 1 . . 7 3 1 . 6 2 Fabricators . | . . . . . . . . . . . . . Repair Stations 4 | . 1 . 2 . . . . . . . 1 . Recycling Units 5 | . 2 . 1 . . . . . 1 . 1 . Scanalyzers 2 | . . . 1 . . . . . 1 . . . Garrison Access 3 | . . . . . . . 1 . 1 . 1 . Total Hacks 188 | . 40 . 56 2 1 . 32 8 8 . 34 7 Successful 117 | . 26 . 38 1 1 . 18 4 4 . 23 2 Failed 68 | . 13 . 17 1 . . 14 4 4 . 10 5 Catastrophic 5 | . . . . . . . 1 . 1 . . 3 Database Lockouts 3 | . 1 . 1 . . . . . . . 1 . Manual 132 | . 33 . 30 3 1 . 29 4 1 . 27 4 Terminals 150 | . 33 . 43 2 . . 31 8 1 . 25 7 Fabricators . | . . . . . . . . . . . . . Repair Stations 11 | . 3 . 4 . . . . . . . 4 . Recycling Units 15 | . 4 . 4 . . . . . 3 . 4 . Scanalyzers 8 | . . . 5 . . . . . 3 . . . Garrison Access 3 | . . . . . . . 1 . 1 . 1 . Terminal Hacks 40 | . 7 . 14 1 1 . 6 4 . . 5 2 Robot Analysis 17 | . 4 . 8 1 . . 3 . . . 1 . Prototype ID Bank 3 | . 1 . 2 . . . . . . . . . Open Door 1 | . . . . . . . . 1 . . . . Branch Access Points 1 | . . . . . . . 1 . . . . . Emergency Access Points 2 | . . . . . . . . . . . 1 1 Terminal Index 3 | . 1 . . . . . 1 . . . 1 . Alert Level 2 | . 1 . 1 . . . . . . . . . Unreport Threat 1 | . . . 1 . . . . . . . . . Dispatch Records 1 | . . . 1 . . . . . . . . . Hauler Manifests 1 | . . . 1 . . . . . . . . . Zone Layout 3 | . . . . . . . 1 . . . 2 . Garrison Registry 1 | . . . . . . . . 1 . . . . Patrol Navigation 2 | . . . . . . . . 1 . . . 1 Security Stations 1 | . . . . . . . . 1 . . . . Derelict Proto ID Bank 1 | . . . . . 1 . . . . . . . Fabricator Hacks . | . . . . . . . . . . . . . Repair Station Hacks 8 | . . . 4 . . . . . . . 4 . Scan Component 4 | . . . 2 . . . . . . . 2 . Repair 4 | . . . 2 . . . . . . . 2 . Recycling Unit Hacks 4 | . 2 . 1 . . . . . 1 . . . Retrieve Components 4 | . 2 . 1 . . . . . 1 . . . Scanalyzer 6 | . . . 4 . . . . . 2 . . . Insert Component 3 | . . . 2 . . . . . 1 . . . Analyze 3 | . . . 2 . . . . . 1 . . . Garrison Access Hacks 3 | . . . . . . . 1 . 1 . 1 . Unlock Access 3 | . . . . . . . 1 . 1 . 1 . Unauthorized Hacks 56 | . 17 . 15 . . . 11 . . . 13 . Terminals 50 | . 14 . 15 . . . 11 . . . 10 . Track 2 | . 2 . . . . . . . . . . . Assimilate 3 | . 2 . 1 . . . . . . . . . Botnet 13 | . 4 . 2 . . . 3 . . . 4 . Operators 4 | . 1 . 2 . . . 1 . . . . . Skim 28 | . 5 . 10 . . . 7 . . . 6 . Fabricators . | . . . . . . . . . . . . . Repair Stations 1 | . 1 . . . . . . . . . . . Mechanics 1 | . 1 . . . . . . . . . . . Recycling Units 5 | . 2 . . . . . . . . . 3 . Monitor 1 | . . . . . . . . . . . 1 . Reject 1 | . . . . . . . . . . . 1 . Recyclers 1 | . . . . . . . . . . . 1 . Tunnel 2 | . 2 . . . . . . . . . . . Scanalyzers . | . . . . . . . . . . . . . Garrison Access . | . . . . . . . . . . . . . Data Cores Recovered . | . . . . . . . . . . . . . Used . | . . . . . . . . . . . . . Hacking Detections 48 | . 7 . 14 1 . . 8 3 4 . 9 2 Full Trace Events 8 | . 1 . 2 1 . . . 1 1 . . 2 Feedback Events 1 | . . . . . . . . . 1 . . . Corruption 1 | . . . . . . . . . 1 . . . Feedback Blocked . | . . . . . . . . . . . . . Robot Schematics Acquired . | . . . . . . . . . . . . . Robots Built . | . . . . . . . . . . . . . Authchips . | . . . . . . . . . . . . . Time . | . . . . . . . . . . . . . Total Robot Build Rating . | . . . . . . . . . . . . . Part Schematics Acquired 3 | . . . 2 . . . . . 1 . . . Parts Built . | . . . . . . . . . . . . . Authchips . | . . . . . . . . . . . . . Time . | . . . . . . . . . . . . . Total Part Build Rating . | . . . . . . . . . . . . . Parts Repaired 4 | . . . 2 . . . . . . . 2 . Time 115 | . . . 51 . . . . . . . 64 . Parts Recycled . | . . . . . . . . . . . . . Recycled Matter . | . . . . . . . . . . . . . Retrieved Matter . | . . . . . . . . . . . . . Retrieved Components 23 | . 11 . 9 . . . . . 3 . . . Parts Scanalyzed 3 | . . . 2 . . . . . 1 . . . Part Schematics Acquired 3 | . . . 2 . . . . . 1 . . . Parts Damaged . | . . . . . . . . . . . . . Bothacking | -11 -10 -10 -9 -9 -9 -8 -8 -8 -8 -8 -8 -8 ------------ Run | Yrd Mat Min Mat Min Exi Min Mat Gar Mat Gar Mat Gar Used RIF Installer 5 | . . . . . . . . 1 . 2 . 2 Hotswap 1 | . . . . . . . . . . 1 . . Code Merge 1 | . . . . . . . . . . . . 1 Command Fork 1 | . . . . . . . . . . 1 . . Autooverride 1 | . . . . . . . . . . . . 1 Robots Hacked 13 | . . . . . . . . . 1 2 . 10 Non-combat 1 | . . . . . . . . . 1 . . . Combat 12 | . . . . . . . . . . 2 . 10 Autooverrided 1 | . . . . . . . . . . . . 1 Robot Hacks Applied 15 | . . . . . . . . . 2 2 . 11 parse_system 1 | . . . . . . . . . . . . 1 drop_inventory 1 | . . . . . . . . . 1 . . . locate_stockpiles 1 | . . . . . . . . . 1 . . . scatter_targeting 1 | . . . . . . . . . . . . 1 reboot_system 4 | . . . . . . . . . . 1 . 3 formatsys_high 7 | . . . . . . . . . . 1 . 6 Relay Couplers Released 25 | . . . . . . . . . . 13 . 12 Machine Destruction 22 | . . . . . . . . . . 10 . 12 Programmers 3 | . . . . . . . . . . 3 . . Attached 9 | . . . . . . . . . 1 1 . 7 Fabnet Peak Effective % . | . . . . . . . . . . . . . Robots Rewired 3 | . . . . . . . . . . 3 . . Allies Hacked . | . . . . . . . . . . . . . Hacks Repelled . | . . . . . . . . . . . . . Allies | -11 -10 -10 -9 -9 -9 -8 -8 -8 -8 -8 -8 -8 -------- Run | Yrd Mat Min Mat Min Exi Min Mat Gar Mat Gar Mat Gar Total Allies 15 | . 1 . 1 1 . . . 1 . 4 . 7 Largest Group 3 | . 1 . 1 1 1 . . 1 . 3 . 3 Highest-Rated Group 72 | . 10 . 10 31 31 . . 31 . 72 . 47 Highest-Rated Ally 31 | . 10 . 10 31 31 . . 31 . 24 . 21 Total Orders . | . . . . . . . . . . . . . Ally Attacks 73 | . . . . . . . . 14 . 9 . 50 Total Damage 1162 | . . . . . . . . 187 . 243 . 732 Kills 15 | . . . . . . . . 3 . 3 . 9 Allies Corrupted . | . . . . . . . . . . . . . Allies Melted 1 | . . . . . . . . . . 1 . . Intel | -11 -10 -10 -9 -9 -9 -8 -8 -8 -8 -8 -8 -8 ------- Run | Yrd Mat Min Mat Min Exi Min Mat Gar Mat Gar Mat Gar Robot Analysis Total 17 | . 4 . 8 1 . . 3 . . . 1 . Derelict Logs Recovered 3 | . . 2 . 1 . . . . . . . . Drone Launches . | . . . . . . . . . . . . . Drone Recoveries . | . . . . . . . . . . . . . Exploration | -11 -10 -10 -9 -9 -9 -8 -8 -8 -8 -8 -8 -8 ------------- Run | Yrd Mat Min Mat Min Exi Min Mat Gar Mat Gar Mat Gar Turns Passed 19028 | 134 2134 672 4258 850 867 1404 2436 1140 387 1819 1504 1423 Spaces Moved 6254 | 58 821 258 1258 248 263 393 728 412 121 673 492 529 Core 6 | 6 . . . . . . . . . . . . Treads 6168 | 52 741 258 1258 248 263 393 728 412 121 673 492 529 Legs . | . . . . . . . . . . . . . Wheels 80 | . 80 . . . . . . . . . . . Hover . | . . . . . . . . . . . . . Flight . | . . . . . . . . . . . . . Fastest Speed 50 | 50 105 240 240 330 330 330 243 243 243 230 236 242 Average Speed 263 | 148 220 240 303 330 330 330 248 243 243 235 239 242 Slowest Speed 330 | 160 240 240 330 330 330 330 250 243 243 250 242 242 Overloaded Moves . | . . . . . . . . . . . . . Propulsion Burnouts . | . . . . . . . . . . . . . Robots Hopped . | . . . . . . . . . . . . . Cave-ins Triggered . | . . . . . . . . . . . . . Exploration Rate (%) 58 | 5 99 63 89 35 63 98 61 53 13 67 53 66 Regions Visited 12 Branch Regions 4 Pre-discovered Areas 14 | . 3 . 7 1 . . 1 . . . 2 . Known Exits Taken 8 | . . 1 1 1 1 1 1 . 1 . 1 . Unknown Exits Taken 2 | 1 1 . . . . . . . . . . . Scrap Searched 2 | . . 1 . . . 1 . . . . . . Spaces Dug 33 | . . 8 17 . . . . . 8 . . . Terrain Destroyed 244 | . 88 8 65 . . . 10 31 36 . 1 5 Melee . | . . . . . . . . . . . . . Projectile 1 | . . . . . . . . . . . 1 . AOE 243 | . 88 8 65 . . . 10 31 36 . . 5 Terrain Rammed . | . . . . . . . . . . . . . Walls Destroyed . | . . . . . . . . . . . . . Machines Disabled . | . . . . . . . . . . . . . Actions | -11 -10 -10 -9 -9 -9 -8 -8 -8 -8 -8 -8 -8 --------- Run | Yrd Mat Min Mat Min Exi Min Mat Gar Mat Gar Mat Gar Total 7799 | 80 973 286 1498 264 266 427 1213 473 178 821 693 627 Wait 500 | . 11 1 27 . . . 345 . 9 7 82 18 Move 6245 | 57 820 257 1257 247 262 392 728 411 121 672 492 529 Hop . | . . . . . . . . . . . . . Pick Up 122 | 4 20 3 37 2 2 . 13 1 4 13 12 11 Fast Attach 26 | 7 4 . 9 1 . . 1 . 1 1 . 2 Attach 27 | . 3 . 4 . . 1 3 . 1 5 8 2 Detach 4 | . 2 . . . . . 1 . 1 . . . Swap 141 | 1 16 6 22 3 . 1 21 12 9 17 19 14 Drop 122 | . 11 5 42 3 2 . 22 1 5 11 9 11 Fire 581 | 11 86 14 100 8 . 33 79 38 25 80 71 36 Melee 2 | . . . . . . . . . 2 . . . Ram . | . . . . . . . . . . . . . Kick . | . . . . . . . . . . . . . Crush . | . . . . . . . . . . . . . Escape Stasis 20 | . . . . . . . . 10 . 6 . 4 Rewire 9 | . . . . . . . . . . 9 . . Trap . | . . . . . . . . . . . . . Miscellaneous . | . . . . . . . . . . . . . Route ------- -11/Scrapyard -10/Materials (discovered 5 exits: *Mat x3 / [*Min] / *Sub) -10/Mines (discovered 2 exits: *Mat / Sub) -9/Materials (discovered 4 exits: *Mat x3 / *Min) -9/Mines (discovered 2 exits: *Mat / *Exi) -9/Exiles (discovered 2 exits: *Min x2) -8/Mines (discovered 2 exits: *Mat x2) -8/Materials (discovered 4 exits: *Fac x2 / *Sto / Gar) -8/Garrison (discovered 4 exits: *Mat x4) -8/Materials (discovered 2 exits: Sto / Gar) -8/Garrison (discovered 3 exits: *Fac x2 / *Mat) -8/Materials (discovered 4 exits: *Fac x2 / *Sto / Gar) -8/Garrison (discovered 3 exits: *Fac x3) History --------- Turn | Location | Event 4 | -11/Scrapyard | Discovered new exit (range 14) 135 | -11/Scrapyard | Entered Materials 300 | -10/Materials | Build established: Mutant 415 | -10/Materials | Discovered new exit (range 16) 461 | -10/Materials | Destroyed 9 combat bots 601 | -10/Materials | Discovered new exit (range 9) 627 | -10/Materials | Discovered new exit (range 8) 896 | -10/Materials | Lost 5 parts (1p2n2w) 1250 | -10/Materials | Discovered new exit (range 15) 1632 | -10/Materials | Discovered new exit (range 16) 1824 | -10/Materials | Central database locked down 1926 | -10/Materials | Learned Storage security intel 2052 | -10/Materials | Learned location of 2 exits from Mines 2080 | -10/Materials | Identified exit to Materials 2269 | -10/Materials | Entered Mines 2270 | -10/Mines | Identified exit to Subcaves 2362 | -10/Mines | Learned Materials interactive machine intel 2479 | -10/Mines | Found a damaged Exp. Sensor Array with a note attached 2489 | -10/Mines | Found Prototype Device 2496 | -10/Mines | Identified Exp. Sensor Array 2802 | -10/Mines | A weapon hastily lodged in a ceiling crevice suddenly fell to the ground 2941 | -10/Mines | Entered Materials 2941 | -9/Materials | Evolved 2 slots: Utility x1, Weapon x1 2942 | -9/Materials | Loaded intel: 18 interactive machine locations 3753 | -9/Materials | Build established: Skirmisher 3828 | -9/Materials | Discovered new exit (range 9) 3898 | -9/Materials | Identified exit to Mines 4069 | -9/Materials | Build established: Tank 4395 | -9/Materials | Discovered new exit (range 13) 4465 | -9/Materials | Identified exit to Materials 4809 | -9/Materials | Discovered exit to Materials (range 15) 5043 | -9/Materials | Learned Storage stockpile data 5090 | -9/Materials | Loaded intel: 11 terminal locations 5128 | -9/Materials | Learned Storage trap positions 5178 | -9/Materials | Learned Storage emergency access door positions 5290 | -9/Materials | Loaded intel: 5 trap records 5612 | -9/Materials | Build established: Skirmisher 5933 | -9/Materials | Repaired Structural Scanner 6131 | -9/Materials | Repaired Arm. Treads? 6131 | -9/Materials | Central database locked down 6702 | -9/Materials | Learned Storage trap positions 6708 | -9/Materials | Build established: Tank 6837 | -9/Materials | Learned location of Zion (-6) 7199 | -9/Materials | Entered Mines 7203 | -9/Mines | Met a Derelict bent on vengeance 7300 | -9/Mines | Learned location of Storage (-8) 7370 | -9/Mines | Received a Rocket Launcher from a helpful Derelict 7757 | -9/Mines | Discovered exit to Materials (range 11) 7994 | -9/Mines | Escorted by a lone wolf Derelict 8033 | -9/Mines | Deemed a non-threat by the Exiles lab entrance 8036 | -9/Mines | Discovered new exit (range 5) 8046 | -9/Mines | Identified exit to Exiles 8049 | -9/Mines | Entered Exiles 8049 | -9/Exiles | Accompanied by 1 ally 8092 | -9/Exiles | Discovered new exit (range 15) 8145 | -9/Exiles | Identified exit to Mines 8211 | -9/Exiles | Met 8R-AWN 8245 | -9/Exiles | Build established: Skirmisher 8267 | -9/Exiles | Met EX-HEX 8363 | -9/Exiles | Met EX-BIN 8403 | -9/Exiles | Aligned with FarCom system 8406 | -9/Exiles | Given EX-Vault access code 8485 | -9/Exiles | Opened EX-Vault 8509 | -9/Exiles | Found Gui. Plasma Cannon 8579 | -9/Exiles | Warned to stay clear of 0b10 Research branches 8675 | -9/Exiles | Met EX-DEC 8876 | -9/Exiles | Discovered exit to Mines (range 14) 8916 | -9/Exiles | Left Exiles lab with Gui. Plasma Cannon 8916 | -9/Exiles | Entered Mines 10224 | -8/Mines | Discovered exit to Materials (range 6) 10270 | -8/Mines | Discovered exit to Materials (range 12) 10320 | -8/Mines | Entered Materials 10320 | -8/Materials | Evolved 2 slots: Propulsion x2 10321 | -8/Materials | Identified exit to Storage 11595 | -8/Materials | Identified exit to Factory 11646 | -8/Materials | Learned 8 Factory zone layouts 11687 | -8/Materials | Learned location of 1 exit from Extension 11736 | -8/Materials | Learned 2 Storage zone layouts 11933 | -8/Materials | Garrison activated, responded to threat 12148 | -8/Materials | Garrison activated, responded to threat 12254 | -8/Materials | Garrison activated, responded to threat 12305 | -8/Materials | Discovered exit to Factory (range 4) 12756 | -8/Materials | Identified exit to Garrison 12756 | -8/Materials | Entered Garrison 12882 | -8/Garrison | Triggered checkpoint 12944 | -8/Garrison | Rescued a captive Derelict 13093 | -8/Garrison | Triggered checkpoint 13106 | -8/Garrison | Triggered checkpoint 13116 | -8/Garrison | Triggered checkpoint 13139 | -8/Garrison | Triggered checkpoint 13184 | -8/Garrison | Destroyed 15 combat bots 13302 | -8/Garrison | Discovered new exit (range 14) 13371 | -8/Garrison | Discovered new exit (range 79) 13371 | -8/Garrison | Discovered new exit (range 53) 13371 | -8/Garrison | Discovered new exit (range 4) 13371 | -8/Garrison | Discovered new exit (range 82) 13376 | -8/Garrison | Learned Materials security intel 13384 | -8/Garrison | Identified exit to Materials 13710 | -8/Garrison | Installed Relay Interface Framework 13896 | -8/Garrison | Entered Materials 14264 | -8/Materials | Garrison activated, responded to threat 14283 | -8/Materials | Identified exit to Garrison 14283 | -8/Materials | Entered Garrison 14329 | -8/Garrison | Spotted B-75 Beast 14347 | -8/Garrison | Triggered checkpoint 14349 | -8/Garrison | Core integrity fell below 50% 14361 | -8/Garrison | Destroyed B-75 Beast 14391 | -8/Garrison | Lost 4 parts (3n1u) 14582 | -8/Garrison | Expanded RIF knowledge: Command Fork 14662 | -8/Garrison | Garrison Relay disabled 14765 | -8/Garrison | Build established: Scavenger-Skirmisher 14843 | -8/Garrison | Triggered checkpoint 14843 | -8/Garrison | Triggered checkpoint 14911 | -8/Garrison | Lost 3 allies 14997 | -8/Garrison | Triggered checkpoint 15132 | -8/Garrison | Discovered exit to Factory (range 11) 15303 | -8/Garrison | Triggered checkpoint 15360 | -8/Garrison | Discovered new exit (range 6) 15405 | -8/Garrison | Triggered checkpoint 15425 | -8/Garrison | Garrison Relay disabled 15545 | -8/Garrison | Triggered checkpoint 15695 | -8/Garrison | Triggered checkpoint 15757 | -8/Garrison | Expanded RIF knowledge: Hotswap 15823 | -8/Garrison | Discovered exit to Factory (range 11) 16102 | -8/Garrison | Entered Materials 16435 | -8/Materials | Discovered exit to Storage (range 11) 16470 | -8/Materials | Central database locked down 16502 | -8/Materials | First assault squad dispatched 16608 | -8/Materials | Core integrity fell below 20% 16620 | -8/Materials | Lost 7 parts (3n4w) 16691 | -8/Materials | Discovered exit to Factory (range 15) 16790 | -8/Materials | Destroyed 7 combat bots 16897 | -8/Materials | Repaired Hrd. Medium Armor Plating 16924 | -8/Materials | Repaired Lgt. Treads 17397 | -8/Materials | Build established: Skirmisher 17474 | -8/Materials | Learned Factory stockpile data 17539 | -8/Materials | Learned 12 Factory zone layouts 17579 | -8/Materials | Discovered exit to Factory (range 15) 17595 | -8/Materials | Learned location of Extension (-5) 17606 | -8/Materials | Identified exit to Garrison 17606 | -8/Materials | Entered Garrison 17657 | -8/Garrison | Garrison Relay disabled 17718 | -8/Garrison | Triggered checkpoint 17785 | -8/Garrison | Garrison Relay disabled 18024 | -8/Garrison | Triggered checkpoint 18092 | -8/Garrison | Triggered checkpoint 18136 | -8/Garrison | Discovered exit to Factory (range 13) 18156 | -8/Garrison | Triggered checkpoint 18219 | -8/Garrison | Expanded RIF knowledge: Autooverride 18300 | -8/Garrison | Garrison Relay disabled 18354 | -8/Garrison | Expanded RIF knowledge: Code Merge 18548 | -8/Garrison | Triggered checkpoint 18656 | -8/Garrison | Discovered exit to Factory (range 9) 18830 | -8/Garrison | Discovered exit to Factory (range 11) 18856 | -8/Garrison | Triggered checkpoint 19029 | -8/Garrison | Destroyed by Y-45 Defender with Heavy Assault Rifle Last Messages --------------- 18876_ ALERT: Suspicious activity at Terminal G002. Transmitting hostile system tracking data. 18919_ 4VULCOC8U3WCDP>K II,H:1F#PMANLT9K/PV 18954_ Slug penetrates Y-45 Defender. 18954_ Y-45 Defender destroyed. 18983_ L4NMFAGXO&C2KKE6SL67RXNFWLLEPMT0% BA 19004_ Machine disabled. 19014_ Triggered Alarm Trap. 19014_ An alarm sounds. 19015_ Slug penetrates Reinforced Barrier. 19018_ Slug penetrates Y-45 Defender. 19019_ Commando 3a destroyed. 19019_ Discarded Relay Coupler [Hunter]. 19022_ Y-45 Defender suffers critical hit (Burn). 19024_ Critical hit (Burn: +37). 19029_ X-57 Shotgunner destroyed. 19029_ Switching to secondary target: Y-45 Defender. Map ----- +----------------------------------------------------+ | =[% +???????? ??+ ############ | | %* #????????###??#!#[ [[## """" | | ######## ## ## #?????????????#[%*! " | | ?????### ## ## ###???????????###!!!!## """" | | ?????# +?????????????############ | | ?????# ! #????????????????????????? | | ?????# = =% #????????????????????????? | | ?????#* = = #???????????#####????????? | | ?????### ## ## ###???????????#"# #????????? | | ####### ##%% #?????##??????#"! #????????? | | * ^% !%=* #?????#"##????#" [#????????? | | % ![*% +?????#"[#????# ! #????????? | | ###+### *!! #?????#" #????#"# #????????? | | #?????### # ## ##?????#!!#????### #????????? | | #???????# ##% ## #??????#"=#??????# ###??????? | | #???????# ######## #??????## #??????# #??????? | | +???????+ #??????# #???????#[#??????# #??????? | | #???????# #??????# #???????# #??????# #??????? | | #???????# #??????# #???????# #??????+ ###??????? | | #####+### #??????# #???????# #??????#!#????????? | | #??????# #####+### ##+#???#%#????????? | | #??????# *% #???# #????????? | | ######### #??????# = #####=#????????? | | #???????# #??????######;+###### #????????? | | #??????? ""??????????# #????# #######????????? | | #??????? !"#?????????#=@#????# #??????????????? | | #??????? !"#?????????#[Y#????# #??????????????? | | #??????? !"#???????? Y%[+ #??# #??????????????? | | #??????? !"#??????" #[ # ""## ###????????????? | | #??????? !"#?????#"! # #?!"## #????????????? | | #?????? !"#?????#"]?# #??"## #????????????? | | #?????? ""??????# ??# #????# #????????????? | | #??????!!!"""??????#???#x #????######????????????? | | #??????"""""???????????# #??????????????????????? | | #??????###?????????????# #??????????????????????? | | #?????????????????????? ??????????????????????? | | ???????????????????????!!!!??????????????????????? | | ???????????????????????" ""??????????????????????? | | ???????????????????????####??????????????????????? | | ?????????????????????????????????????????????????? | | ?????????????????????????????????????????????????? | | ?????????????????????????????????????????????????? | | ?????????????????????????????????????????????????? | | ?????????????????????????????????????????????????? | | ?????????????????????????????????????????????????? | | ?????????????????????????????????????????????????? | | ?????????????????????????????????????????????????? | | ?????????????????????????????????????????????????? | | ?????????????????????????????????????????????????? | | ?????????????????????????????????????????????????? | +----------------------------------------------------+ Best States ------------- Heat Dissipation 58 Energy Generation 16 Energy Capacity 290 Matter Stores 300 Matter Capacity 300 Sight Range 16 Robot Scan Range 20 Terrain Scan Density 10 Armor Coverage 225 Evasion (%) 40 Recoil Reduction 4 Offensive Hacking 20 Relay Coupler Types 1 Relay Coupler Value 37 Item Schematics ----------------- Structural Scanner | -9/Materials | Scanalyzed Arm. Treads | -9/Materials | Scanalyzed Imp. Datajack | -8/Materials | Scanalyzed Robot Schematics ------------------ None Fabricated ------------ Nothing Alien Tech Used ----------------- None Achievements -------------- None Challenges ------------ None Game ------ Seed CryofiberBurstCycler Manual? 0 Play Time 01:42:39 Cumulative 181.8 hours Start 2024.12.15 @ 10:48:01 End 2024.12.15 @ 12:31:14 Sessions 1 Manual Loads 0 Difficulty Rogue Special Mode None Game No. 192 Rogue 192 Adventurer 0 Explorer 0 Win Type - Total 3 Types 3/0/0/0/0/0/0/0/0 Lore% 64 Gallery% 59 Achievement% 57 Wizard Run 0 Options --------- Layout 1 ASCII 0 Keyboard 1 Movement Arrows Keybinds 0 Fullscreen 0 Font 20/Smallcaps Map View 50x35 Zoom Use 0% Tactical HUD 1 Map Filters NONE Filters NONE Steam 1 RUN: 3bafd4b2-a9cf-487f-9114-d122d8719f2f